bitfinex/quotes_ETHUSD_20220202
["timestamp","ask_amount","ask_price","bid_price","bid_amount"]
[1643833529987,0.00220593,2712.8,2712.2,2.31513035]
[1643833530188,1.56328476,2713.2,2712.2,2.31513035]
[1643833530588,0.00220593,2712.6,2712.2,2.31513035]
[1643833530791,0.00220593,2712.6,2712.3,0.92136]
[1643833530990,0.00220593,2712.6,2712.3,1.84266]
[1643833531190,0.00220593,2712.6,2712.3,2.84266]
[1643833531389,0.19141001,2712.8,2712.3,2.84266]
[1643833531791,0.00537109,2712.6,2712.4,0.00196333]
[1643833532289,0.00537109,2712.6,2712.3,2.84266]
[1643833532688,0.19141001,2712.8,2712.3,2.84266]
[1643833532888,0.00537109,2712.6,2712.4,0.00196333]
[1643833533536,0.00537109,2712.6,2712.2,3.13231857]
[1643833533735,0.00537109,2712.6,2712.3,1.84267]
[1643833533935,0.1842,2713.3,2712.3,0.9213]
[1643833534138,0.00537115,2712.5,2712.4,2.18798945]
[1643833534337,0.00537115,2712.5,2712.4,3.18798945]
[1643833534537,0.00537115,2712.5,2712.4,1.00196333]
[1643833534736,0.00537115,2712.5,2712.3,2.84258]
[1643833534936,0.00537115,2712.5,2712.3,1.84258]
[1643833535138,0.004,2712.8,2712.4,4.67128]
[1643833535337,0.00537115,2712.5,2712.4,6.89043245]
[1643833536037,0.004,2712.8,2712.4,6.89043245]
[1643833536038,0.004,2712.8,2712.5,5.4653451]
[1643833536238,0.004,2712.8,2712.7,7.09206]
[1643833536441,0.1842,2713.8,2712.8,5.25]
[1643833536638,1.6785,2715.1,2712.9,2.2886885]
[1643833536639,1.56292526,2713.7,2712.9,2.2886885]
[1643833536897,0.69790133,2714.2,2712.9,3.2886885]
[1643833536898,1.56292526,2713.6,2712.9,3.2886885]
[1643833537086,1.56292526,2713.5,2713.2,1.84192]
[1643833537287,0.69790133,2714.1,2713.3,2.13724254]
[1643833537487,0.17699273,2713.9,2713.3,2.46405949]
[1643833537686,1.56292234,2713.8,2713.3,1.0]
[1643833538087,1.56292234,2713.8,2713.1,1.0]
[1643833538889,0.99999999,2713.5,2713.0,8.151]
[1643833539090,1.56292234,2713.4,2712.9,0.00520716]
[1643833539290,1.56292234,2713.3,2712.9,0.00520716]
[1643833539688,1.56292234,2713.2,2712.9,0.00520716]
[1643833540090,1.56829267,2713.2,2712.9,0.00520716]
[1643833540290,0.00537033,2713.2,2712.9,0.00520716]
[1643833541239,0.00537039,2713.2,2712.9,0.00520716]
[1643833542239,0.21808814,2713.3,2712.9,0.00520716]
[1643833542442,1.56845423,2713.2,2712.9,0.00520716]
[1643833542643,0.00537039,2713.2,2712.9,0.00520716]
[1643833543440,0.21808814,2713.3,2712.9,0.00520716]
[1643833543640,1.56844959,2713.2,2712.9,0.00520716]
[1643833543845,1.56315379,2713.1,2712.9,0.00520716]
[1643833544792,0.21808814,2713.3,2712.9,0.00520716]
[1643833544988,1.5631324,2713.2,2712.9,0.00520716]
[1643833547791,0.1842,2713.6,2713.0,4.85]
[1643833547993,0.1842,2713.6,2713.1,1.37751128]
[1643833548245,0.69790133,2714.2,2713.2,5.25]
[1643833548450,0.1842,2714.3,2713.3,0.53]
[1643833548646,0.02148744,2714.1,2713.4,5.44739065]
[1643833548846,0.02148744,2714.1,2714.0,6.29092373]
[1643833549048,0.02148744,2714.1,2714.0,7.07562373]
[1643833549244,2.21025794,2715.0,2714.1,5.25]
[1643833549446,0.1842,2715.0,2714.2,0.53]
[1643833549647,0.1841,2715.1,2714.2,1.53]
[1643833549845,0.1841,2715.2,2714.2,1.53]
[1643833550047,0.70062396,2715.3,2714.2,1.53]
[1643833550246,0.88200133,2715.5,2715.1,0.17873454]
[1643833550445,0.00271533,2715.2,2714.7,0.70305085]
[1643833550657,0.00271533,2715.2,2714.4,9.02484794]
[1643833550658,0.00271533,2715.2,2714.5,2.29445007]
[1643833550848,0.00271533,2715.2,2714.3,7.8075]
[1643833550849,0.99999999,2715.1,2714.3,7.8075]
[1643833551047,0.69790133,2715.2,2714.1,1.1705]
[1643833551250,0.1841,2715.0,2714.2,3.16358275]
[1643833551454,0.18684733,2715.1,2714.5,0.224856]
[1643833551657,0.18956266,2715.1,2714.3,1.0]
[1643833551894,0.18956266,2715.1,2714.1,2.1705]
[1643833552495,0.18956266,2715.1,2714.1,1.1705]
[1643833552791,0.00271533,2715.1,2714.1,2.95279339]
[1643833553191,0.00271533,2715.1,2714.2,2.09748423]
[1643833553391,0.00537167,2714.7,2714.2,2.09748423]
[1643833553594,0.00537167,2714.7,2714.2,3.09748423]
[1643833553793,0.16346034,2714.7,2714.2,3.09748423]
[1643833553992,0.16346034,2714.7,2714.2,1.0]
[1643833554199,0.16346034,2714.7,2714.1,1.1705]
[1643833554395,1.15808866,2714.7,2714.1,1.1705]
[1643833554596,0.18957185,2714.6,2714.0,0.00537308]
[1643833555395,0.99999999,2714.4,2714.0,0.00537308]
[1643833555645,0.00537203,2714.4,2714.0,0.00537296]
[1643833556644,0.1842,2714.6,2713.9,0.19889573]
[1643833557047,0.00537214,2714.3,2714.0,0.00537288]
[1643833557846,0.1842,2714.6,2713.8,0.87276503]
[1643833558047,0.1842,2714.6,2714.0,0.00319222]
[1643833558450,0.22341531,2714.2,2714.0,0.00319222]
[1643833559049,0.22341531,2714.2,2713.8,0.87276503]
[1643833559499,0.22341531,2714.2,2714.0,0.00319222]
[1643833559892,0.1842,2714.7,2714.0,0.00319222]
[1643833560293,0.1842,2714.7,2713.8,0.87276503]
[1643833560492,0.1842,2714.7,2714.0,0.00319222]
[1643833560993,0.1919886,2714.4,2714.1,0.00089922]
[1643833561793,0.19735523,2714.4,2714.1,0.00089922]
[1643833562794,0.1919886,2714.4,2714.1,0.00089922]
[1643833562997,0.19735523,2714.4,2714.1,0.00089922]
[1643833563440,2.21766665,2714.4,2714.1,0.00089922]
[1643833563640,0.99999999,2714.2,2714.1,0.00089922]
[1643833564241,0.1919886,2714.4,2714.1,0.00089922]
[1643833564242,0.19735523,2714.4,2714.1,0.00089922]
[1643833564644,0.00536663,2714.4,2714.1,0.00089922]
[1643833565046,3.89214699,2714.9,2714.1,0.00089922]
[1643833565246,0.99999999,2714.7,2714.1,0.00089922]
[1643833565443,0.00536663,2714.4,2714.1,0.00089922]
[1643833565642,0.20422933,2714.4,2714.1,0.00089922]
[1643833566241,0.1988627,2714.4,2714.1,0.00089922]
[1643833566442,0.1988627,2714.4,2713.9,1.23523812]
[1643833566643,0.00536663,2714.4,2714.0,0.00536747]
[1643833567588,0.99999999,2714.7,2713.9,1.43227261]
[1643833567890,0.00536669,2714.3,2714.0,0.00536743]
[1643833568689,0.1842,2715.0,2713.9,1.23523812]
[1643833568890,0.00536675,2714.3,2714.1,0.21636866]
[1643833569090,0.00536675,2714.3,2714.0,0.00536739]
[1643833569288,1.56247616,2714.2,2714.0,0.00536739]
[1643833569688,0.00536675,2714.3,2714.1,5.25]
[1643833569894,0.18691533,2715.1,2714.2,6.15]
[1643833570089,0.00271533,2715.1,2714.3,0.53]
[1643833570290,0.1841,2715.4,2714.3,0.53]
[1643833570291,0.02146188,2714.9,2714.3,0.53]
[1643833570943,0.02146188,2714.9,2714.7,0.91216572]
[1643833571149,0.38858981,2715.3,2714.3,1.52076191]
[1643833571350,0.00536622,2714.7,2714.3,1.52076191]
[1643833571743,0.00536622,2714.7,2714.4,0.92054]
[1643833571943,0.00536622,2714.7,2714.5,0.92055]
[1643833572343,0.20448981,2715.3,2714.5,0.92055]
[1643833572551,0.1841,2715.4,2714.8,0.90722715]
[1643833572744,1.18409999,2715.4,2714.5,3.09425]
[1643833572943,1.18409999,2715.4,2714.5,1.1737]
[1643833573144,1.18409999,2715.4,2714.6,1.0]
[1643833573445,1.18409999,2715.4,2714.5,1.1737]
[1643833573645,0.20574262,2715.1,2714.7,0.81218316]
[1643833573843,0.00536032,2715.1,2714.7,0.81218316]
[1643833574391,0.00536032,2715.1,2714.7,1.11218316]
[1643833574592,0.00536032,2715.1,2714.7,0.3]
[1643833574793,0.1643967,2715.0,2714.5,1.4737]
[1643833575093,0.16975713,2715.0,2714.5,2.4737]
[1643833575592,0.00536043,2715.0,2714.6,0.90063788]
[1643833575792,0.00536043,2715.0,2714.6,1.3]
[1643833575991,0.99999999,2715.2,2714.6,1.3]
[1643833576191,0.99999999,2715.2,2714.5,1.4737]
[1643833576192,0.00536055,2714.9,2714.5,1.4737]
[1643833576590,0.00536055,2714.9,2714.5,1.1737]
[1643833576990,0.00536055,2714.9,2714.2,3.9602]
[1643833576991,0.99999999,2714.7,2714.2,3.9602]
[1643833577190,0.99999999,2714.5,2714.2,3.9602]
[1643833577391,0.16880954,2714.8,2714.0,3.61386239]
[1643833578347,0.16344887,2714.8,2714.0,3.6085]
[1643833578544,0.00536102,2714.5,2714.2,0.79350571]
[1643833578745,0.00536102,2714.5,2714.2,1.09350571]
[1643833579146,0.00536102,2714.5,2714.2,0.3]
[1643833579444,0.1842,2715.0,2714.1,1.3]
[1643833579844,0.00536108,2714.5,2714.1,1.3]
[1643833580246,0.00536108,2714.5,2714.2,0.67754603]
[1643833580451,0.00536108,2714.5,2714.1,1.3]
[1643833580645,0.1620868,2714.6,2714.1,1.3]
[1643833580846,0.1842,2715.0,2714.1,1.3]
[1643833581046,0.00536108,2714.5,2714.1,1.3]
[1643833581246,0.00536108,2714.5,2714.1,1.30108084]
[1643833581896,0.21391266,2715.0,2714.1,1.30108084]
[1643833582096,0.00536114,2714.4,2714.1,1.30108084]
[1643833583098,0.1841,2714.9,2714.1,1.30108084]
[1643833583295,0.0053612,2714.4,2714.1,1.30108084]
[1643833584396,0.21568604,2714.6,2714.1,1.30108084]
[1643833584596,0.0053612,2714.4,2714.1,1.30108084]
[1643833585199,0.0053612,2714.4,2714.0,4.53808155]
[1643833585200,0.0053612,2714.4,2714.0,0.00536203]
[1643833585400,0.01814649,2714.4,2714.0,0.00536203]
[1643833585644,0.1842,2714.3,2713.2,0.1842]
[1643833585940,0.1842,2714.3,2714.0,0.00536199]
[1643833585941,0.88746259,2714.3,2714.0,0.00536199]
[1643833586138,5.45979585,2714.1,2714.0,0.00536199]
[1643833586341,7.38058227,2714.1,2714.0,0.00536199]
[1643833586537,8.0784836,2714.1,2714.0,0.00536199]
[1643833586738,8.0784836,2714.1,2712.9,0.00520716]
[1643833586940,8.0784836,2714.1,2713.9,0.00536197]
[1643833586941,0.1842,2714.0,2713.9,0.00536197]
[1643833587537,2.25812675,2714.0,2713.9,0.00536197]
[1643833587937,2.25812675,2714.0,2713.0,0.17658474]
[1643833587938,0.21676008,2713.6,2713.0,0.17658474]
[1643833588245,2.25812675,2714.0,2713.5,0.77978931]
[1643833588441,0.1842,2714.0,2713.5,0.77978931]
[1643833588638,0.00518031,2714.2,2713.5,0.77978931]
[1643833589038,0.1842,2714.8,2713.6,0.1842]
[1643833589396,0.00518023,2714.2,2713.7,0.00518122]
[1643833590400,1.5624284,2714.1,2713.5,0.3]
[1643833590597,1.5624284,2714.0,2713.8,0.00518111]
[1643833590802,0.00518031,2714.2,2713.8,0.00518111]
[1643833590997,1.56245702,2714.1,2713.8,0.00518111]
[1643833591601,1.56245702,2714.1,2713.5,0.4842]
[1643833591801,1.56245702,2714.0,2713.8,0.00488293]
[1643833592000,1.56245702,2714.1,2713.8,0.00488293]
[1643833592200,1.56245978,2714.0,2713.8,0.00488293]
[1643833592401,0.00488218,2714.2,2713.8,0.00488293]
[1643833592601,1.56243587,2714.1,2713.8,0.00488293]
[1643833592801,1.56243587,2714.1,2713.5,0.4842]
[1643833593001,1.56243587,2714.0,2713.9,0.00488288]
[1643833593243,1.56243587,2714.1,2713.9,0.00488288]
[1643833593446,1.56243587,2714.0,2713.9,0.00488288]
[1643833593743,0.00488222,2714.2,2713.9,0.00488288]
[1643833593744,1.56243587,2714.1,2713.9,0.00488288]
[1643833593943,0.16774997,2714.3,2713.4,1.4842]
[1643833593944,1.56243587,2714.0,2713.4,1.4842]
[1643833594145,1.56731805,2714.2,2713.8,0.00488293]
[1643833594445,1.56243587,2714.1,2713.8,0.00488293]
[1643833595043,0.21893149,2713.6,2713.4,0.4842]
[1643833595244,0.21893149,2713.6,2713.4,0.3]
[1643833595643,0.21893149,2713.6,2713.3,1.5143]
[1643833598300,0.00217272,2714.1,2713.3,1.5143]
[1643833598705,1.56258617,2714.2,2713.3,1.5143]
[1643833598901,0.00217355,2714.1,2713.3,2.43535]
[1643833599303,0.00217355,2714.1,2713.3,3.43535]
[1643833599502,0.22486989,2713.9,2713.3,3.43535]
[1643833600303,0.22486989,2713.9,2713.4,0.1801607]
[1643833600645,1.56255054,2713.8,2713.3,1.3]
[1643833600845,1.56255054,2713.8,2713.2,1.0]
[1643833601253,1.56255054,2713.8,2713.1,2.14209]
[1643833601446,1.56255054,2713.7,2713.1,2.14209]
[1643833601647,0.00217339,2714.1,2713.1,2.14209]
[1643833601846,0.00217339,2714.1,2713.5,0.92176516]
[1643833602247,0.00217339,2714.1,2713.5,1.22176516]
[1643833602547,0.20160928,2713.9,2713.7,0.00536289]
[1643833602749,1.56254994,2713.8,2713.7,0.00536289]
[1643833603550,1.56254994,2713.8,2713.2,1.4842]
[1643833603752,1.56254994,2713.8,2713.6,0.00536295]
[1643833604149,0.00536199,2714.1,2713.6,0.00536295]
[1643833604396,1.56256468,2714.0,2713.6,0.00536295]
[1643833604691,1.56256468,2714.0,2713.4,1.38794593]
[1643833604891,1.56256468,2713.9,2713.4,1.38794593]
[1643833605092,1.56256468,2713.8,2713.7,0.00536289]
[1643833605391,0.17137481,2713.9,2713.7,0.00536289]
[1643833605592,1.56256468,2713.8,2713.7,0.00536289]
[1643833605991,1.56256468,2713.8,2713.2,1.4842]
[1643833606591,1.56256468,2713.7,2713.4,0.92106]
[1643833606791,0.00217666,2714.1,2713.4,0.92106]
[1643833606990,0.00217666,2714.1,2713.4,1.22106]
[1643833607191,1.5625322,2714.2,2713.4,1.22106]
[1643833607391,0.18916948,2714.1,2713.6,0.22754645]
[1643833607591,1.5625322,2714.0,2713.7,0.92096]
[1643833607992,1.5625322,2714.0,2713.7,1.22096]
[1643833608642,1.5625322,2714.0,2713.7,1.22632663]
[1643833608842,1.5625322,2714.0,2713.7,0.00536663]
[1643833610447,1.96262868,2713.9,2713.7,0.00536663]
[1643833610643,6.9967322,2713.8,2713.7,0.00536663]
[1643833610843,9.28752888,2713.8,2713.2,0.1842]
[1643833611044,9.28752888,2713.8,2713.7,0.00536659]
[1643833611250,6.9967322,2713.8,2713.7,0.00536659]
[1643833612006,7.9967322,2713.8,2713.2,0.1842]
[1643833612204,1.5625322,2713.7,2713.6,0.00536665]
[1643833612404,1.7467322,2713.7,2713.6,0.00536665]
[1643833612606,1.5625322,2713.7,2713.6,0.00536665]
[1643833612806,0.00536569,2714.1,2713.6,0.00536665]
[1643833612807,0.1842,2714.0,2713.6,0.00536665]
[1643833613007,1.56251559,2713.9,2713.6,0.00536665]
[1643833613207,1.56253386,2713.8,2713.0,2.1881]
[1643833613407,0.00536573,2714.1,2713.7,0.00536659]
[1643833613606,1.7467292,2714.0,2713.7,0.00536659]
[1643833613808,1.5625292,2713.9,2713.7,0.00536659]
[1643833614414,1.5625292,2713.9,2713.4,0.3]
[1643833614611,0.1712322,2713.8,2713.7,0.00536659]
[1643833614811,1.9179614,2713.8,2713.7,0.00536659]
[1643833615109,1.9179614,2713.8,2712.9,0.35077003]
[1643833615110,1.7337614,2713.8,2712.9,0.35077003]
[1643833615310,1.5625292,2713.7,2712.9,0.65077003]
[1643833615749,1.5625292,2713.7,2712.9,0.4842]
[1643833616649,1.7467292,2713.7,2712.9,0.4842]
[1643833616847,1.5625292,2713.6,2713.1,0.73918367]
[1643833617248,1.5625292,2713.6,2713.1,1.03918367]
[1643833617652,1.5625292,2713.6,2713.1,0.3]
[1643833617853,1.5625292,2713.6,2712.8,2.14255]
[1643833618051,1.56002674,2713.6,2712.8,2.14255]
[1643833618451,1.56002674,2713.6,2712.8,1.2213]
[1643833618852,1.56002674,2713.6,2713.1,0.67747382]
[1643833619151,1.56002674,2713.6,2713.1,0.97747382]
[1643833619393,1.56002674,2713.6,2713.2,0.00536712]
[1643833620392,1.56002674,2713.6,2713.1,0.97747382]
[1643833620593,1.56002674,2713.6,2713.3,0.00536706]
[1643833621594,1.56002674,2713.6,2713.1,0.97747382]
[1643833621794,1.56002674,2713.6,2713.3,0.005367]
[1643833622795,1.56002674,2713.6,2713.1,0.97747382]
[1643833622997,1.56002674,2713.6,2713.3,0.005367]
[1643833624044,1.56002674,2713.6,2713.1,1.89870382]
[1643833624244,1.56002674,2713.6,2713.3,0.005367]
[1643833624542,0.1712322,2713.8,2713.3,0.005367]
[1643833625143,0.1712322,2713.8,2713.1,1.89870382]
[1643833625344,0.1712322,2713.8,2713.4,0.00536688]
[1643833626448,0.1712322,2713.8,2713.1,2.89870382]
[1643833626646,0.1712322,2713.8,2713.5,0.00536683]
[1643833627500,0.1712322,2713.8,2713.1,1.89870382]
[1643833627899,0.1712322,2713.8,2713.5,0.00536677]
[1643833628698,0.1712322,2713.8,2713.1,2.89870382]
[1643833628901,0.1712322,2713.8,2713.5,0.00536677]
[1643833629906,0.1712322,2713.8,2713.1,2.89870382]
[1643833630301,0.1712322,2713.8,2713.5,0.00536677]
[1643833631147,0.1712322,2713.8,2713.1,2.89870382]
[1643833631348,0.1712322,2713.8,2713.5,0.00536677]
[1643833632457,0.88210133,2714.2,2713.4,0.92114]
[1643833632651,0.00536601,2713.9,2713.5,0.00536677]
[1643833632849,0.00536601,2713.9,2713.5,0.18956677]
[1643833633247,0.00536601,2713.9,2713.5,1.18956677]
[1643833633548,0.20303206,2714.0,2713.6,0.66894452]
[1643833633748,0.20303206,2714.0,2713.7,0.92099]
[1643833633950,0.00536605,2713.9,2713.7,0.92099]
[1643833634151,0.00536605,2713.9,2713.7,1.84203]
[1643833634404,0.00536605,2713.9,2713.7,2.84203]
[1643833634801,0.69790133,2714.4,2713.7,2.84203]
[1643833635008,0.00536605,2713.9,2713.7,2.84203]
[1643833636005,0.69790133,2714.4,2713.8,0.53]
[1643833636206,0.71936097,2714.5,2713.9,0.92091]
[1643833636405,0.71936097,2714.5,2713.9,1.45091]
[1643833636607,0.69790133,2714.4,2713.9,2.75091]
[1643833636807,0.21222152,2714.0,2713.9,0.83]
[1643833637009,0.21222152,2714.0,2713.6,6.47561131]
[1643833637207,0.21222152,2714.0,2713.6,1.79904452]
[1643833637409,0.21222152,2714.0,2713.8,0.92109]
[1643833638009,1.56259087,2713.9,2713.8,0.92109]
[1643833638251,1.56259087,2713.9,2713.8,1.22109]
[1643833638449,1.56259087,2713.9,2713.8,0.3]
[1643833638849,1.56259087,2713.9,2713.6,0.30536683]
[1643833639148,1.56259087,2713.9,2713.6,0.00536683]
[1643833639552,1.56259087,2713.9,2713.5,3.14202]
[1643833639750,0.00536609,2713.9,2713.6,0.00536675]
[1643833640752,0.21222152,2714.0,2713.5,2.14202]
[1643833640951,0.00536609,2713.9,2713.6,0.00536675]
[1643833641353,0.00536609,2713.9,2713.6,0.30536675]
[1643833641552,0.00536609,2713.9,2713.6,0.00536675]
[1643833641993,0.21222152,2714.0,2713.4,3.35241728]
[1643833642193,0.00536609,2713.9,2713.6,0.00536675]
[1643833642396,0.69790133,2714.1,2713.7,5.25]
[1643833642600,0.1842,2714.4,2713.8,2.00135744]
[1643833642801,0.02145948,2714.5,2713.9,0.53]
[1643833642995,0.02145948,2714.5,2714.0,2.94626]
[1643833643196,0.00271648,2715.0,2714.1,0.53]
[1643833643397,0.16781024,2715.0,2714.5,0.70969766]
[1643833643595,0.16509376,2715.0,2714.5,2.37138]
[1643833643797,0.16509376,2715.0,2714.5,4.21276]
[1643833643997,0.16509376,2715.0,2714.2,1.7095]
[1643833644197,1.11741129,2714.9,2714.2,1.5254]
[1643833644398,0.18681648,2714.9,2714.2,2.5254]
[1643833644596,0.00217763,2714.7,2714.2,2.5254]
[1643833644797,0.00217763,2714.7,2714.4,1.22084]
[1643833645651,0.18681648,2714.9,2714.4,1.22084]
[1643833645851,0.00536967,2714.7,2714.4,1.22084]
[1643833646852,0.18681648,2714.9,2714.4,1.22084]
[1643833647056,0.00536967,2714.7,2713.9,2.02594]
[1643833647254,0.1842,2714.6,2713.9,0.3]
[1643833647455,0.1842,2714.6,2713.7,0.00537169]
[1643833647853,0.18086073,2714.1,2713.8,0.66937303]
[1643833648059,0.18086073,2714.1,2713.8,1.84186]
[1643833648254,0.18086073,2714.1,2713.8,2.14186]
[1643833648656,0.18086073,2714.1,2713.8,3.0629]
[1643833649257,0.18086073,2714.1,2713.6,2.14202]
[1643833649497,0.18086073,2714.1,2713.7,0.00537121]
[1643833649498,0.18623111,2714.1,2713.7,0.00537121]
[1643833650302,0.18086073,2714.1,2713.6,2.14202]
[1643833650504,0.1842,2714.5,2713.8,0.92104]
[1643833650802,0.00537044,2714.0,2713.9,2.4]
[1643833650999,0.00537044,2714.0,2713.9,4.46239737]
[1643833651200,0.00537044,2714.0,2713.9,5.76239737]
[1643833651698,0.1842,2714.6,2713.9,5.76239737]
[1643833651699,0.1842,2714.6,2714.2,0.67064565]
[1643833651897,0.00271648,2714.5,2714.2,0.67064565]
[1643833652297,0.00271648,2714.5,2714.2,1.89154225]
[1643833652497,0.00871808,2714.7,2714.2,1.89154225]
[1643833652498,0.01143456,2714.7,2714.2,1.89154225]
[1643833652701,0.00271648,2714.7,2714.2,1.89154225]
[1643833652899,0.00271648,2714.7,2714.3,0.9209]
[1643833653145,0.00218002,2714.6,2714.4,1.22086]
[1643833653451,0.00218002,2714.6,2714.5,0.22484462]
[1643833653946,0.18691648,2714.9,2714.5,0.22484462]
[1643833654147,0.1842,2714.9,2714.7,1.84166]
[1643833654347,0.1842,2714.9,2714.7,2.14166]
[1643833654648,0.1842,2714.9,2714.5,1.14570462]
[1643833654856,0.1842,2714.9,2714.0,2.0259]
[1643833654857,1.0,2714.6,2714.0,2.0259]
[1643833655050,1.0,2714.6,2713.7,0.00537859]
[1643833655051,1.0,2714.2,2713.7,0.00537859]
[1643833655250,1.0,2714.0,2713.3,0.1842]
[1643833655449,0.71373,2714.0,2713.7,0.00537839]
[1643833655649,1.74869,2713.9,2713.7,0.00537839]
[1643833656051,6.31441861,2713.8,2713.7,0.00537839]
[1643833656248,7.31441861,2713.8,2713.7,0.00537839]
[1643833656448,8.31441861,2713.8,2712.8,0.1842]
[1643833656647,8.31441861,2713.8,2712.7,7.4]
[1643833656648,1.1842,2713.7,2713.6,0.00495473]
[1643833657104,6.24613398,2713.7,2713.6,0.00495473]
[1643833657503,6.24613398,2713.7,2712.7,7.8842]
[1643833657702,6.24613398,2713.7,2712.7,8.52989226]
[1643833657703,0.19042442,2713.0,2712.7,8.52989226]
[1643833657902,6.24613398,2713.7,2713.5,0.00495485]
[1643833658706,3.25,2713.6,2712.7,7.7]
[1643833658904,2.05718954,2713.5,2712.7,7.7]
[1643833659504,0.17320869,2712.9,2712.7,7.7]
[1643833660405,0.17320869,2712.9,2712.5,0.1842]
[1643833660658,0.17320869,2712.9,2712.3,0.18616197]
[1643833660850,0.17320869,2712.9,2712.3,0.00196197]
[1643833661251,1.56308304,2712.8,2712.3,0.00196197]
[1643833662649,1.56308304,2712.8,2712.4,0.00501768]
[1643833663051,2.0078219,2712.7,2712.4,0.00501768]
[1643833663451,2.23990025,2712.6,2712.4,0.00501768]
[1643833663651,6.3375,2712.5,2711.7,0.00196197]
[1643833663858,6.3375,2712.5,2712.4,0.0032064]
[1643833664051,8.08512343,2712.5,2712.4,0.0032064]
[1643833664708,8.08512343,2712.5,2711.5,0.00196197]
[1643833664909,1.56342343,2712.4,2711.5,0.00196197]
[1643833665110,2.56342343,2712.4,2712.3,0.00501247]
[1643833665303,4.88634353,2712.4,2712.3,0.00501247]
[1643833666004,5.08155524,2712.4,2711.5,0.00196197]
[1643833666204,0.15915146,2711.8,2711.5,0.00196197]
[1643833666409,3.27682007,2712.4,2711.4,7.5842]
[1643833667005,3.27682007,2712.4,2711.5,0.00196197]
[1643833667405,3.27682007,2712.4,2711.8,0.00501312]
[1643833667606,0.36793,2712.3,2711.8,0.00501312]
[1643833667806,1.99050505,2712.2,2711.8,0.00501312]
[1643833668007,0.18373,2712.1,2711.8,0.00501312]
[1643833668256,6.43373,2711.9,2711.8,0.00501312]
[1643833668450,6.43373,2711.9,2711.0,0.00196197]
[1643833668451,0.22200778,2711.2,2711.0,0.00196197]
[1643833668651,2.10440016,2711.1,2711.0,0.00196197]
[1643833668852,5.60440016,2711.1,2711.0,0.00196197]
[1643833669055,5.60440016,2711.1,2710.5,0.00196197]
[1643833669650,5.60440016,2711.1,2710.2,0.69920807]
[1643833669651,0.17430132,2710.7,2710.3,0.00196197]
[1643833669854,0.17430132,2710.7,2710.0,0.1844]
[1643833670451,2.44380804,2710.7,2709.6,0.1844]
[1643833670650,2.44380804,2710.7,2709.5,0.1844]
[1643833670852,3.44380804,2710.7,2709.8,0.17200311]
[1643833671050,3.44380804,2710.7,2710.0,0.00498149]
[1643833671251,3.14652354,2710.7,2710.0,0.00498149]
[1643833671455,3.15075782,2710.7,2710.0,0.00498149]
[1643833671916,6.08317782,2710.7,2710.0,0.00498149]
[1643833672100,0.1844,2710.6,2709.3,0.1844]
[1643833672301,0.18373,2710.5,2710.2,0.00522927]
[1643833672499,6.88242,2710.3,2710.2,0.00522927]
[1643833672700,9.09432893,2710.3,2710.2,0.00522927]
[1643833672901,9.95598608,2710.3,2710.2,0.00522927]
[1643833673104,9.95598608,2710.3,2709.8,0.02092023]
[1643833673105,7.88242,2710.3,2709.8,0.02092023]
[1643833673303,7.88242,2710.3,2708.9,4.0209]
[1643833673304,3.12515883,2710.2,2708.9,4.0209]
[1643833673503,5.40384883,2710.2,2710.1,0.00522939]
[1643833673803,5.25,2710.1,2708.9,0.1844]
[1643833674005,5.25,2710.1,2708.6,0.1344]
[1643833674006,1.0,2709.6,2708.6,0.1344]
[1643833674206,1.0,2709.6,2708.0,0.1844]
[1643833674207,2.24642623,2709.5,2708.0,0.1844]
[1643833674401,0.76891913,2709.1,2708.0,0.99507011]
[1643833674702,2.73344517,2709.4,2708.0,0.99507011]
[1643833675003,1.0,2709.3,2708.0,0.99507011]
[1643833675201,1.53,2709.3,2708.0,0.99507011]
[1643833675402,0.15968194,2708.5,2708.0,0.1844]
[1643833675851,2.17682594,2708.5,2708.1,0.01914087]
[1643833676053,2.16190595,2708.5,2708.1,0.01914087]
[1643833676355,3.91586568,2708.5,2708.1,0.01914087]
[1643833676552,2.91586568,2708.5,2708.1,0.01914087]
[1643833676755,1.0,2708.4,2707.9,1.0721187]
[1643833676956,2.07095158,2708.3,2707.9,1.0721187]
[1643833677154,2.07095158,2708.3,2708.2,0.00478489]
[1643833677354,3.81964158,2708.3,2708.2,0.00478489]
[1643833677552,1.74869,2708.3,2708.2,0.00478489]
[1643833677752,2.74869,2708.3,2708.2,0.00478489]
[1643833677954,0.1845,2708.5,2707.9,1.0721187]
[1643833678153,0.1845,2708.7,2707.9,1.0721187]
[1643833678352,0.1845,2709.1,2708.1,0.00478494]
[1643833678755,0.18449,2709.0,2708.1,0.00478494]
[1643833678954,0.40330938,2708.9,2708.1,0.00478494]
[1643833679156,1.0,2708.7,2707.9,1.0721187]
[1643833679406,0.1845,2708.6,2707.9,1.0721187]
[1643833679605,0.1845,2708.8,2708.0,2.0]
[1643833679802,0.21880938,2708.9,2707.9,1.0721187]
[1643833680102,0.21880938,2708.9,2708.0,0.1845]
[1643833680302,0.21880938,2708.9,2707.9,1.0721187]
[1643833680303,2.11768,2708.8,2707.9,1.0721187]
[1643833680506,3.99153649,2708.8,2707.9,1.0721187]
[1643833680709,2.64768,2708.8,2707.9,1.0721187]
[1643833680903,1.0,2708.7,2707.9,1.3721187]
[1643833681304,2.11768,2708.8,2707.9,1.3721187]
[1643833681505,0.20353832,2708.1,2707.9,1.3721187]
[1643833681908,0.20353832,2708.1,2707.9,1.0721187]
[1643833682113,0.20353832,2708.1,2707.4,0.1845]
[1643833682114,6.29869,2708.0,2707.4,0.1845]
[1643833682308,1.67000451,2707.7,2707.4,0.1845]
[1643833682907,0.1747195,2707.6,2707.4,0.1845]
[1643833683155,0.1747195,2707.6,2707.4,0.1897083]
[1643833683554,0.1747195,2707.6,2707.4,0.0052083]
[1643833683955,0.1747195,2707.6,2706.7,7.5845]
[1643833684158,0.1747195,2707.6,2707.4,0.00314663]
[1643833684355,1.67000451,2707.7,2707.4,0.00314663]
[1643833685159,1.67000451,2707.7,2707.0,0.53193816]
[1643833685356,1.67000451,2707.7,2707.4,0.00314657]
[1643833685357,0.20006292,2707.6,2707.4,0.00314657]
[1643833685756,1.67000451,2707.7,2707.4,0.00314657]
[1643833686359,1.67000451,2707.7,2707.4,0.3]
[1643833686558,1.67000451,2707.7,2707.4,0.30534724]
[1643833686761,1.67000451,2707.7,2707.4,0.00534724]
[1643833687007,1.67000451,2707.7,2707.4,0.30534724]
[1643833687208,0.1969403,2707.5,2707.4,0.30534724]
[1643833687703,0.1969403,2707.5,2707.4,0.3]
[1643833688103,0.1969403,2707.5,2707.3,0.00534736]